[Event "*** Titled Tuesday Blitz"]
[Site "Chess.com"]
[Date "2020.04.07"]
[Round "8"]
[White "TheKingDoctor"]
[Black "HiHaruka"]
[Result "0-1"]
[WhiteElo "2103"]
[BlackElo "2280"]
[TimeControl "180+1"]
[EndTime "14:35:35 PDT"]
[Termination "HiHaruka won on time"]

1. e4 {[%clk 0:03:00.9]} 1... c5 {[%clk 0:02:59]} 2. c3 {[%clk 0:03:00.3]} 2...
d6 {[%clk 0:02:58.7]} 3. d4 {[%clk 0:02:58.7]} 3... cxd4 {[%clk 0:02:59.6]} 4.
cxd4 {[%clk 0:02:57.4]} 4... Nf6 {[%clk 0:02:57.8]} 5. Bd3 {[%clk 0:02:55.8]}
5... g6 {[%clk 0:02:56.2]} 6. Nf3 {[%clk 0:02:54.9]} 6... Bg7 {[%clk 0:02:56.2]}
7. h3 {[%clk 0:02:52.2]} 7... O-O {[%clk 0:02:55.9]} 8. Nc3 {[%clk 0:02:50.8]}
8... Nc6 {[%clk 0:02:55.9]} 9. Be3 {[%clk 0:02:48.5]} 9... e5 {[%clk 0:02:55.4]}
10. d5 {[%clk 0:02:47.8]} 10... Nb4 {[%clk 0:02:53.7]} 11. O-O {[%clk
0:02:44.7]} 11... Nxd3 {[%clk 0:02:52.1]} 12. Qxd3 {[%clk 0:02:45.6]} 12... Bd7
{[%clk 0:02:51.9]} 13. Nd2 {[%clk 0:02:39.5]} 13... a6 {[%clk 0:02:46]} 14. Nc4
{[%clk 0:02:34.4]} 14... Ne8 {[%clk 0:02:35.4]} 15. Nb6 {[%clk 0:02:28.3]} 15...
Rb8 {[%clk 0:02:32.5]} 16. f3 {[%clk 0:02:09.3]} 16... f5 {[%clk 0:02:26.5]} 17.
Rac1 {[%clk 0:01:55.7]} 17... Nc7 {[%clk 0:01:54.9]} 18. Nxd7 {[%clk 0:01:31.6]}
18... Qxd7 {[%clk 0:01:55.8]} 19. Bb6 {[%clk 0:01:32.4]} 19... Rbc8 {[%clk
0:01:53.5]} 20. Ne2 {[%clk 0:01:28.9]} 20... Nb5 {[%clk 0:01:51.9]} 21. a4
{[%clk 0:01:26.6]} 21... Nc7 {[%clk 0:01:38.4]} 22. Rc4 {[%clk 0:01:25.1]} 22...
Na8 {[%clk 0:01:35.7]} 23. Bf2 {[%clk 0:01:07]} 23... b5 {[%clk 0:01:25.3]} 24.
Rxc8 {[%clk 0:01:02.3]} 24... Rxc8 {[%clk 0:01:26.2]} 25. axb5 {[%clk
0:00:59.8]} 25... axb5 {[%clk 0:01:17.8]} 26. Nc3 {[%clk 0:00:56.7]} 26... b4
{[%clk 0:01:11.7]} 27. Ne2 {[%clk 0:00:55.6]} 27... Nc7 {[%clk 0:01:08.1]} 28.
Rc1 {[%clk 0:00:54.4]} 28... Bh6 {[%clk 0:01:01.7]} 29. Rc6 {[%clk 0:00:53.7]}
29... Ne8 {[%clk 0:00:53.6]} 30. Qc4 {[%clk 0:00:52.7]} 30... Rb8 {[%clk
0:00:51.7]} 31. g4 {[%clk 0:00:38.5]} 31... fxe4 {[%clk 0:00:45.1]} 32. fxe4
{[%clk 0:00:37.3]} 32... Qf7 {[%clk 0:00:38.5]} 33. Kg2 {[%clk 0:00:34]} 33...
Qd7 {[%clk 0:00:34]} 34. Bh4 {[%clk 0:00:32.7]} 34... Bf8 {[%clk 0:00:32.4]} 35.
Bg5 {[%clk 0:00:28.5]} 35... Qb7 {[%clk 0:00:29.7]} 36. Ng3 {[%clk 0:00:26.4]}
36... Qb5 {[%clk 0:00:26.8]} 37. Qxb5 {[%clk 0:00:24.9]} 37... Rxb5 {[%clk
0:00:27.7]} 38. Rc8 {[%clk 0:00:25.4]} 38... Kf7 {[%clk 0:00:26.5]} 39. Bd2
{[%clk 0:00:20.1]} 39... b3 {[%clk 0:00:22.9]} 40. Ne2 {[%clk 0:00:18.3]} 40...
Rc5 {[%clk 0:00:21.8]} 41. Rxc5 {[%clk 0:00:16]} 41... dxc5 {[%clk 0:00:22.7]}
42. Bc3 {[%clk 0:00:14]} 42... Bg7 {[%clk 0:00:17.8]} 43. Kf3 {[%clk 0:00:12.4]}
43... Nd6 {[%clk 0:00:17.4]} 44. Ke3 {[%clk 0:00:10.7]} 44... Nc4+ {[%clk
0:00:16.5]} 45. Kd3 {[%clk 0:00:09.9]} 45... Nd6 {[%clk 0:00:16.7]} 46. Bd2
{[%clk 0:00:05.2]} 46... c4+ {[%clk 0:00:15.1]} 47. Kc3 {[%clk 0:00:05.5]} 47...
Nxe4+ {[%clk 0:00:15.2]} 48. Kxc4 {[%clk 0:00:05.1]} 48... Nxd2+ {[%clk
0:00:16.1]} 49. Kc5 {[%clk 0:00:05.7]} 49... Bf8+ {[%clk 0:00:15.6]} 50. Kc6
{[%clk 0:00:04.1]} 50... Nc4 {[%clk 0:00:15.4]} 51. d6 {[%clk 0:00:03.4]} 51...
Nxd6 {[%clk 0:00:11.9]} 52. Kd5 {[%clk 0:00:02.6]} 52... e4 {[%clk 0:00:11.4]}
53. Nc3 {[%clk 0:00:02.3]} 53... e3 {[%clk 0:00:10.9]} 54. Ne2 {[%clk
0:00:01.7]} 54... Nb5 {[%clk 0:00:09.4]} 55. Ke4 {[%clk 0:00:01.6]} 55... Bg7
{[%clk 0:00:09.3]} 0-1

[Event "*** Titled Tuesday Blitz"]
[Site "Chess.com"]
[Date "2020.04.07"]
[Round "8"]
[White "VerdeNotte"]
[Black "Firegrizzly"]
[Result "1/2-1/2"]
[WhiteElo "2739"]
[BlackElo "2610"]
[TimeControl "180+1"]
[EndTime "14:35:40 PDT"]
[Termination "Game drawn by repetition"]

1. e4 {[%clk 0:03:00.9]} 1... e6 {[%clk 0:02:58.1]} 2. d4 {[%clk 0:02:59.7]}
2... d5 {[%clk 0:02:58.4]} 3. Nd2 {[%clk 0:03:00.1]} 3... Nc6 {[%clk 0:02:57.5]}
4. Ngf3 {[%clk 0:03:00]} 4... Nf6 {[%clk 0:02:56.6]} 5. e5 {[%clk 0:03:00.1]}
5... Nd7 {[%clk 0:02:56.8]} 6. c3 {[%clk 0:03:00.7]} 6... f6 {[%clk 0:02:54.5]}
7. Bb5 {[%clk 0:03:00.8]} 7... a6 {[%clk 0:02:45.7]} 8. Bxc6 {[%clk 0:03:00.4]}
8... bxc6 {[%clk 0:02:45.7]} 9. O-O {[%clk 0:02:53.2]} 9... Be7 {[%clk
0:02:43.2]} 10. Re1 {[%clk 0:02:50.8]} 10... f5 {[%clk 0:02:41.3]} 11. h4 {[%clk
0:02:45]} 11... a5 {[%clk 0:02:40.3]} 12. Nf1 {[%clk 0:02:38.6]} 12... O-O
{[%clk 0:02:36.5]} 13. Ng5 {[%clk 0:02:37.1]} 13... Bxg5 {[%clk 0:02:31.5]} 14.
hxg5 {[%clk 0:02:33.6]} 14... Qe8 {[%clk 0:02:24.8]} 15. Re3 {[%clk 0:02:32.1]}
15... Rf7 {[%clk 0:02:17.6]} 16. Rh3 {[%clk 0:02:31.5]} 16... Nf8 {[%clk
0:02:17.1]} 17. Bf4 {[%clk 0:02:26.9]} 17... a4 {[%clk 0:02:13.9]} 18. Nd2
{[%clk 0:02:13.2]} 18... Re7 {[%clk 0:02:11]} 19. g3 {[%clk 0:02:11.8]} 19...
Ra5 {[%clk 0:02:05.3]} 20. b4 {[%clk 0:02:10.4]} 20... Ra8 {[%clk 0:02:00.7]}
21. Kg2 {[%clk 0:02:02.9]} 21... Rd7 {[%clk 0:01:51.8]} 22. Qf3 {[%clk
0:01:53.6]} 22... Re7 {[%clk 0:01:49.8]} 23. Rah1 {[%clk 0:01:53.3]} 23... Ba6
{[%clk 0:01:48.6]} 24. Qd1 {[%clk 0:01:45.6]} 24... Bd3 {[%clk 0:01:46.2]} 25.
R1h2 {[%clk 0:01:32.8]} 25... Qg6 {[%clk 0:01:39.4]} 26. Kg1 {[%clk 0:01:30.2]}
26... Rd7 {[%clk 0:01:35.1]} 27. Nf3 {[%clk 0:01:29.8]} 27... Bc4 {[%clk
0:01:32.7]} 28. a3 {[%clk 0:01:28.4]} 28... Qe8 {[%clk 0:01:30.6]} 29. Kg2
{[%clk 0:01:25.4]} 29... Rdd8 {[%clk 0:01:29.1]} 30. Ne1 {[%clk 0:01:21.4]}
30... c5 {[%clk 0:01:25.7]} 31. bxc5 {[%clk 0:01:18.4]} 31... Rdb8 {[%clk
0:01:23.8]} 32. Nc2 {[%clk 0:01:08.4]} 32... Rb3 {[%clk 0:01:23.5]} 33. g4
{[%clk 0:01:02.3]} 33... Rab8 {[%clk 0:01:19.7]} 34. gxf5 {[%clk 0:01:00.7]}
34... exf5 {[%clk 0:01:19.5]} 35. Ne3 {[%clk 0:00:53.2]} 35... Qg6 {[%clk
0:01:17.5]} 36. Nxc4 {[%clk 0:00:51.6]} 36... Ne6 {[%clk 0:01:04.1]} 37. Qd2
{[%clk 0:00:47]} 37... dxc4 {[%clk 0:01:03.3]} 38. d5 {[%clk 0:00:47.2]} 38...
Nxc5 {[%clk 0:01:02.8]} 39. Qd4 {[%clk 0:00:41.8]} 39... Nd3 {[%clk 0:00:58.8]}
40. e6 {[%clk 0:00:32.7]} 40... Rb2 {[%clk 0:00:57]} 41. Kg3 {[%clk 0:00:26.4]}
41... Rb1 {[%clk 0:00:52]} 42. f3 {[%clk 0:00:20.6]} 42... h6 {[%clk 0:00:35]}
43. Qxc4 {[%clk 0:00:20.6]} 43... Rg1+ {[%clk 0:00:30.1]} 44. Rg2 {[%clk
0:00:20.5]} 44... Rxg2+ {[%clk 0:00:25.8]} 45. Kxg2 {[%clk 0:00:21.4]} 45...
Rb2+ {[%clk 0:00:25]} 46. Kf1 {[%clk 0:00:20.3]} 46... Nxf4 {[%clk 0:00:20]} 47.
Qxf4 {[%clk 0:00:19.9]} 47... hxg5 {[%clk 0:00:19.6]} 48. Qxc7 {[%clk
0:00:19.2]} 48... Qe8 {[%clk 0:00:17.1]} 49. d6 {[%clk 0:00:17.7]} 49... Qb5+
{[%clk 0:00:16.2]} 50. Kg1 {[%clk 0:00:11]} 50... Rb1+ {[%clk 0:00:16.4]} 51.
Kf2 {[%clk 0:00:10.5]} 51... Qf1+ {[%clk 0:00:15]} 52. Ke3 {[%clk 0:00:10.8]}
52... Qe1+ {[%clk 0:00:13]} 53. Kd4 {[%clk 0:00:10.3]} 53... Qf2+ {[%clk
0:00:08.2]} 54. Kd5 {[%clk 0:00:05.1]} 54... Rb5+ {[%clk 0:00:06.5]} 55. Kc6
{[%clk 0:00:05.4]} 55... Rc5+ {[%clk 0:00:06.2]} 56. Kd7 {[%clk 0:00:04]} 56...
Rxc7+ {[%clk 0:00:04.8]} 57. dxc7 {[%clk 0:00:04.9]} 57... Qd2+ {[%clk
0:00:04.8]} 58. Kc8 {[%clk 0:00:05.2]} 58... Qd5 {[%clk 0:00:03.4]} 59. e7
{[%clk 0:00:04.8]} 59... Kf7 {[%clk 0:00:03.6]} 60. e8=Q+ {[%clk 0:00:03.4]}
60... Kxe8 {[%clk 0:00:02.9]} 61. Rh8+ {[%clk 0:00:04.3]} 61... Ke7 {[%clk
0:00:02.8]} 62. Kb8 {[%clk 0:00:04.8]} 62... Qb5+ {[%clk 0:00:02.9]} 63. Ka7
{[%clk 0:00:05.3]} 63... Qa5+ {[%clk 0:00:02.1]} 64. Kb7 {[%clk 0:00:05.8]}
64... Qb5+ {[%clk 0:00:03]} 65. Ka7 {[%clk 0:00:06.2]} 65... Qa5+ {[%clk
0:00:03.4]} 66. Kb7 {[%clk 0:00:06.7]} 66... Qb5+ {[%clk 0:00:03.7]} 67. Ka8
{[%clk 0:00:07.2]} 67... Qa6+ {[%clk 0:00:03.7]} 68. Kb8 {[%clk 0:00:07.4]}
68... Qb6+ {[%clk 0:00:04.3]} 69. Kc8 {[%clk 0:00:07.9]} 69... Qa6+ {[%clk
0:00:04.8]} 70. Kb8 {[%clk 0:00:07.9]} 70... Qb6+ {[%clk 0:00:05.7]} 71. Ka8
{[%clk 0:00:07.7]} 71... Qa6+ {[%clk 0:00:06.6]} 72. Kb8 {[%clk 0:00:07.8]}
1/2-1/2

[Event "*** Titled Tuesday Blitz"]
[Site "Chess.com"]
[Date "2020.04.07"]
[Round "8"]
[White "Hangar-18"]
[Black "powermove"]
[Result "1-0"]
[WhiteElo "2402"]
[BlackElo "1505"]
[TimeControl "180+1"]
[EndTime "14:35:40 PDT"]
[Termination "Hangar-18 won by resignation"]

1. b3 {[%clk 0:02:59.2]} 1... Nf6 {[%clk 0:02:55.6]} 2. Bb2 {[%clk 0:03:00.1]}
2... g6 {[%clk 0:02:54.7]} 3. e3 {[%clk 0:03:01]} 3... Bg7 {[%clk 0:02:54.5]} 4.
g3 {[%clk 0:03:01.9]} 4... O-O {[%clk 0:02:53.9]} 5. Bg2 {[%clk 0:03:02.5]} 5...
d5 {[%clk 0:02:51.7]} 6. Nf3 {[%clk 0:03:01.9]} 6... c6 {[%clk 0:02:50.1]} 7.
O-O {[%clk 0:03:02.4]} 7... Bg4 {[%clk 0:02:49.5]} 8. h3 {[%clk 0:03:02.6]} 8...
Bxf3 {[%clk 0:02:49.5]} 9. Qxf3 {[%clk 0:03:02.4]} 9... Nbd7 {[%clk 0:02:50.2]}
10. d4 {[%clk 0:02:57.1]} 10... Ne4 {[%clk 0:02:46.2]} 11. Qe2 {[%clk
0:02:56.1]} 11... e5 {[%clk 0:02:45.1]} 12. Nd2 {[%clk 0:02:49.9]} 12... Nxd2
{[%clk 0:02:34.1]} 13. Qxd2 {[%clk 0:02:50.8]} 13... e4 {[%clk 0:02:31.6]} 14.
c4 {[%clk 0:02:49.8]} 14... Qe7 {[%clk 0:02:09.6]} 15. a4 {[%clk 0:02:43.9]}
15... Qe6 {[%clk 0:02:03.4]} 16. Rfc1 {[%clk 0:02:30]} 16... Nf6 {[%clk
0:01:55.9]} 17. a5 {[%clk 0:02:28.4]} 17... a6 {[%clk 0:01:50.1]} 18. Bf1 {[%clk
0:01:45.8]} 18... Rfe8 {[%clk 0:01:47.5]} 19. Ba3 {[%clk 0:01:37.5]} 19... Rad8
{[%clk 0:01:43.8]} 20. Qb4 {[%clk 0:01:22.6]} 20... Rd7 {[%clk 0:01:41.6]} 21.
Qb6 {[%clk 0:01:22.6]} 21... h5 {[%clk 0:01:35.5]} 22. Ra2 {[%clk 0:01:14.1]}
22... Bh6 {[%clk 0:01:29.8]} 23. b4 {[%clk 0:01:05.1]} 23... Qf5 {[%clk
0:01:20.9]} 24. cxd5 {[%clk 0:00:57.5]} 24... Nxd5 {[%clk 0:01:17.8]} 25. Qc5
{[%clk 0:00:57.7]} 25... Qf3 {[%clk 0:00:53.9]} 26. Bg2 {[%clk 0:00:54]} 26...
Qf5 {[%clk 0:00:53]} 27. Re1 {[%clk 0:00:49.9]} 27... Qe6 {[%clk 0:00:43.6]} 28.
Rc2 {[%clk 0:00:47.5]} 28... h4 {[%clk 0:00:32]} 29. g4 {[%clk 0:00:43.6]} 29...
f5 {[%clk 0:00:31.8]} 30. Kh2 {[%clk 0:00:22.6]} 30... fxg4 {[%clk 0:00:30.9]}
31. hxg4 {[%clk 0:00:23.5]} 31... Qxg4 {[%clk 0:00:30]} 32. Bh3 {[%clk
0:00:24.1]} 32... Bf4+ {[%clk 0:00:26.5]} 33. exf4 {[%clk 0:00:23.5]} 33...
Qxf4+ {[%clk 0:00:26.7]} 34. Kh1 {[%clk 0:00:23.4]} 34... Qf3+ {[%clk
0:00:20.4]} 35. Bg2 {[%clk 0:00:23.7]} 35... Qf4 {[%clk 0:00:20.5]} 36. Qc4
{[%clk 0:00:21.9]} 36... h3 {[%clk 0:00:20]} 37. Bxh3 {[%clk 0:00:19.1]} 37...
Rh7 {[%clk 0:00:19.9]} 38. Qf1 {[%clk 0:00:19.7]} 38... Qf3+ {[%clk 0:00:18.9]}
39. Kh2 {[%clk 0:00:20.1]} 39... Re6 {[%clk 0:00:14.9]} 40. Bc1 {[%clk 0:00:15]}
40... g5 {[%clk 0:00:14]} 41. Qg2 {[%clk 0:00:14.8]} 41... Qf5 {[%clk
0:00:12.4]} 42. Qxg5+ {[%clk 0:00:12.3]} 42... Qxg5 {[%clk 0:00:12.1]} 43. Bxg5
{[%clk 0:00:13.2]} 43... Rg6 {[%clk 0:00:12.6]} 44. Rg1 {[%clk 0:00:12.6]} 44...
e3 {[%clk 0:00:12.1]} 45. fxe3 {[%clk 0:00:11.9]} 45... Kf7 {[%clk 0:00:12.2]}
46. Rf2+ {[%clk 0:00:11.7]} 46... Ke8 {[%clk 0:00:11.4]} 47. Rg3 {[%clk
0:00:12.1]} 47... Nc3 {[%clk 0:00:08.9]} 48. Rfg2 {[%clk 0:00:09.5]} 48... Ne4
{[%clk 0:00:08.9]} 49. Rg4 {[%clk 0:00:09.4]} 49... Nxg5 {[%clk 0:00:07.4]} 50.
Rxg5 {[%clk 0:00:09.5]} 50... Rgh6 {[%clk 0:00:08.3]} 51. R2g3 {[%clk
0:00:09.7]} 51... Kf7 {[%clk 0:00:08.4]} 52. Kg2 {[%clk 0:00:10.1]} 52... Ke7
{[%clk 0:00:08.5]} 53. Re5+ {[%clk 0:00:10.3]} 53... Kd6 {[%clk 0:00:08.3]} 54.
Reg5 {[%clk 0:00:10.4]} 54... Rf6 {[%clk 0:00:08.2]} 55. Rg6 {[%clk 0:00:10.7]}
55... Rf7 {[%clk 0:00:08]} 56. Rxf6+ {[%clk 0:00:10.7]} 56... Rxf6 {[%clk
0:00:08.9]} 57. Rf3 {[%clk 0:00:11.6]} 57... Kd5 {[%clk 0:00:09.1]} 58. Bc8
{[%clk 0:00:10.2]} 58... Rxf3 {[%clk 0:00:08.7]} 59. Kxf3 {[%clk 0:00:10.3]}
59... Kc4 {[%clk 0:00:09.6]} 60. Bxb7 {[%clk 0:00:10.7]} 60... Kxb4 {[%clk
0:00:10.5]} 61. Bxc6 {[%clk 0:00:10.2]} 61... Kxa5 {[%clk 0:00:11.4]} 62. e4
{[%clk 0:00:10.6]} 62... Kb6 {[%clk 0:00:12.3]} 63. d5 {[%clk 0:00:10.4]} 63...
Kc7 {[%clk 0:00:11.6]} 64. Kf4 {[%clk 0:00:11.3]} 64... Kd6 {[%clk 0:00:11.7]}
65. Kf5 {[%clk 0:00:12.2]} 65... a5 {[%clk 0:00:11.9]} 66. Kf6 {[%clk
0:00:13.1]} 66... a4 {[%clk 0:00:11.7]} 67. e5+ {[%clk 0:00:13.5]} 67... Kc5
{[%clk 0:00:11.6]} 68. Bxa4 {[%clk 0:00:13.9]} 68... Kxd5 {[%clk 0:00:11.6]} 69.
e6 {[%clk 0:00:14.8]} 69... Kd6 {[%clk 0:00:11.5]} 70. e7 {[%clk 0:00:15.7]}
70... Kc7 {[%clk 0:00:11.1]} 71. e8=Q {[%clk 0:00:16.6]} 1-0

[Event "*** Titled Tuesday Blitz"]
[Site "Chess.com"]
[Date "2020.04.07"]
[Round "8"]
[White "Alex_Terzi"]
[Black "DraskovicL"]
[Result "0-1"]
[WhiteElo "2413"]
[BlackElo "2569"]
[TimeControl "180+1"]
[EndTime "14:35:42 PDT"]
[Termination "DraskovicL won by resignation"]

1. e4 {[%clk 0:03:00.9]} 1... d5 {[%clk 0:03:00.1]} 2. exd5 {[%clk 0:03:00.7]}
2... Qxd5 {[%clk 0:03:01]} 3. Nf3 {[%clk 0:03:01.1]} 3... Nc6 {[%clk 0:02:58.6]}
4. Nc3 {[%clk 0:03:00.4]} 4... Qd8 {[%clk 0:02:41.1]} 5. Bc4 {[%clk 0:02:52.5]}
5... Nf6 {[%clk 0:02:38.8]} 6. h3 {[%clk 0:02:49.7]} 6... e6 {[%clk 0:02:36.9]}
7. O-O {[%clk 0:02:49.2]} 7... Be7 {[%clk 0:02:32.3]} 8. d3 {[%clk 0:02:49]}
8... O-O {[%clk 0:02:30.1]} 9. Bf4 {[%clk 0:02:48.6]} 9... a6 {[%clk 0:02:27.1]}
10. a3 {[%clk 0:02:45.6]} 10... b5 {[%clk 0:02:27.1]} 11. Bb3 {[%clk 0:02:45]}
11... Bb7 {[%clk 0:02:27.5]} 12. Re1 {[%clk 0:02:43.5]} 12... Qd7 {[%clk
0:02:26.4]} 13. a4 {[%clk 0:02:35.7]} 13... b4 {[%clk 0:02:24.4]} 14. Ne4 {[%clk
0:02:30.4]} 14... Nxe4 {[%clk 0:02:24.4]} 15. dxe4 {[%clk 0:02:27.5]} 15... Rad8
{[%clk 0:02:21.4]} 16. Qe2 {[%clk 0:02:23.6]} 16... Bc5 {[%clk 0:02:06.8]} 17.
Rad1 {[%clk 0:02:17.9]} 17... Qe7 {[%clk 0:02:06.6]} 18. Bg5 {[%clk 0:02:07.5]}
18... f6 {[%clk 0:02:05.1]} 19. Bf4 {[%clk 0:02:03.1]} 19... Kh8 {[%clk
0:02:00.2]} 20. Qc4 {[%clk 0:02:00.7]} 20... e5 {[%clk 0:01:57.7]} 21. Bc1
{[%clk 0:01:49.2]} 21... Na5 {[%clk 0:01:50.3]} 22. Qe2 {[%clk 0:01:48]} 22...
Nxb3 {[%clk 0:01:50.1]} 23. cxb3 {[%clk 0:01:47.8]} 23... Rxd1 {[%clk
0:01:47.3]} 24. Rxd1 {[%clk 0:01:47.4]} 24... Rd8 {[%clk 0:01:47.4]} 25. Rxd8+
{[%clk 0:01:39.6]} 25... Qxd8 {[%clk 0:01:48.3]} 26. Be3 {[%clk 0:01:37]} 26...
Bf8 {[%clk 0:01:13.1]} 27. Nd2 {[%clk 0:01:36.6]} 27... Bc8 {[%clk 0:01:05.6]}
28. Qc4 {[%clk 0:01:32]} 28... Qd6 {[%clk 0:01:04.6]} 29. f3 {[%clk 0:01:17.2]}
29... Be6 {[%clk 0:01:04.2]} 30. Qc2 {[%clk 0:01:15.3]} 30... h5 {[%clk
0:01:01.4]} 31. Nc4 {[%clk 0:01:15]} 31... Qc6 {[%clk 0:01:00]} 32. Qd3 {[%clk
0:01:13.5]} 32... Bc5 {[%clk 0:00:57.3]} 33. Kh2 {[%clk 0:00:35.5]} 33... Bxe3
{[%clk 0:00:48.6]} 34. Nxe3 {[%clk 0:00:36.4]} 34... Qc1 {[%clk 0:00:45.8]} 35.
Qxa6 {[%clk 0:00:21.4]} 35... Bxh3 {[%clk 0:00:22]} 36. Qe2 {[%clk 0:00:10]}
36... Be6 {[%clk 0:00:21]} 37. Nd5 {[%clk 0:00:09.4]} 37... Qc5 {[%clk
0:00:17.8]} 38. Qd3 {[%clk 0:00:08.3]} 38... h4 {[%clk 0:00:17.3]} 39. Ne3
{[%clk 0:00:08.2]} 39... Kg8 {[%clk 0:00:15.2]} 40. Qd8+ {[%clk 0:00:07.6]}
40... Kf7 {[%clk 0:00:15.5]} 41. Qd3 {[%clk 0:00:08.2]} 41... Ke7 {[%clk
0:00:15.5]} 42. Nd5+ {[%clk 0:00:04.9]} 42... Bxd5 {[%clk 0:00:15.8]} 43. Qxd5
{[%clk 0:00:04.5]} 43... Qxd5 {[%clk 0:00:14.4]} 44. exd5 {[%clk 0:00:05.4]}
44... Kd6 {[%clk 0:00:15]} 45. Kh3 {[%clk 0:00:05.6]} 45... g5 {[%clk
0:00:15.3]} 46. Kg4 {[%clk 0:00:05.9]} 46... Kxd5 {[%clk 0:00:15.7]} 47. Kf5
{[%clk 0:00:06.3]} 47... Kd6 {[%clk 0:00:11.1]} 48. Kxf6 {[%clk 0:00:05]} 48...
e4 {[%clk 0:00:11.6]} 49. fxe4 {[%clk 0:00:04.9]} 49... g4 {[%clk 0:00:12.1]}
50. e5+ {[%clk 0:00:05.4]} 50... Kd5 {[%clk 0:00:12.5]} 51. e6 {[%clk
0:00:05.4]} 51... h3 {[%clk 0:00:13]} 52. gxh3 {[%clk 0:00:05.3]} 52... gxh3
{[%clk 0:00:13.9]} 53. e7 {[%clk 0:00:05.6]} 53... h2 {[%clk 0:00:13.7]} 54.
e8=Q {[%clk 0:00:06.1]} 54... h1=Q {[%clk 0:00:14.1]} 55. Qa8+ {[%clk
0:00:06.8]} 55... c6 {[%clk 0:00:14.5]} 56. Qd8+ {[%clk 0:00:06.5]} 56... Kc5
{[%clk 0:00:13]} 57. Qa5+ {[%clk 0:00:06.4]} 57... Kd6 {[%clk 0:00:13.2]} 58.
Qxb4+ {[%clk 0:00:06.3]} 58... Kc7 {[%clk 0:00:13.6]} 59. Qe7+ {[%clk
0:00:05.7]} 59... Kb6 {[%clk 0:00:13.2]} 60. Qe3+ {[%clk 0:00:05.8]} 60... Kb7
{[%clk 0:00:12.3]} 61. Ke5 {[%clk 0:00:04.6]} 61... Qd5+ {[%clk 0:00:11.3]} 62.
Kf4 {[%clk 0:00:04.8]} 62... Qd6+ {[%clk 0:00:11.4]} 63. Kf3 {[%clk 0:00:04.8]}
63... Qf6+ {[%clk 0:00:11.2]} 64. Ke4 {[%clk 0:00:04.2]} 64... Qxb2 {[%clk
0:00:12.1]} 65. Qd3 {[%clk 0:00:03.3]} 65... Qg2+ {[%clk 0:00:11.8]} 66. Kd4
{[%clk 0:00:03.1]} 66... Kb6 {[%clk 0:00:12.1]} 67. Kc3 {[%clk 0:00:03.4]} 67...
c5 {[%clk 0:00:08.8]} 68. Qd4 {[%clk 0:00:04]} 68... cxd4+ {[%clk 0:00:08.7]}
69. Kxd4 {[%clk 0:00:04.7]} 69... Qf3 {[%clk 0:00:09.1]} 0-1

[Event "*** Titled Tuesday Blitz"]
[Site "Chess.com"]
[Date "2020.04.07"]
[Round "8"]
[White "Cocaino74"]
[Black "Kumi29"]
[Result "0-1"]
[WhiteElo "2275"]
[BlackElo "2444"]
[TimeControl "180+1"]
[EndTime "14:35:47 PDT"]
[Termination "Kumi29 won by resignation"]

1. e4 {[%clk 0:03:00.9]} 1... e6 {[%clk 0:03:00.3]} 2. d4 {[%clk 0:03:00.7]}
2... d5 {[%clk 0:03:00.2]} 3. Nd2 {[%clk 0:03:01.3]} 3... a6 {[%clk 0:02:59.9]}
4. Bd3 {[%clk 0:02:53.5]} 4... c5 {[%clk 0:02:58.9]} 5. dxc5 {[%clk 0:02:38.8]}
5... Bxc5 {[%clk 0:02:55.2]} 6. Ngf3 {[%clk 0:02:39.3]} 6... Nf6 {[%clk
0:02:48.5]} 7. O-O {[%clk 0:02:30.4]} 7... dxe4 {[%clk 0:02:36.1]} 8. Nxe4
{[%clk 0:02:30.1]} 8... Nxe4 {[%clk 0:02:35.5]} 9. Bxe4 {[%clk 0:02:30.3]} 9...
Qxd1 {[%clk 0:02:35.6]} 10. Rxd1 {[%clk 0:02:31.2]} 10... Nc6 {[%clk 0:02:36.1]}
11. a3 {[%clk 0:01:51.5]} 11... Bd7 {[%clk 0:02:34.3]} 12. b4 {[%clk 0:01:50.2]}
12... Bb6 {[%clk 0:02:32.4]} 13. c4 {[%clk 0:01:48.8]} 13... Bc7 {[%clk
0:02:07.3]} 14. Bb2 {[%clk 0:01:45.5]} 14... f6 {[%clk 0:02:03.4]} 15. b5 {[%clk
0:01:14]} 15... axb5 {[%clk 0:02:01.8]} 16. cxb5 {[%clk 0:01:14.3]} 16... Nd8
{[%clk 0:01:59.2]} 17. Rac1 {[%clk 0:01:10.4]} 17... Bf4 {[%clk 0:01:55.8]} 18.
Rc3 {[%clk 0:00:49.2]} 18... Bxb5 {[%clk 0:01:48]} 19. g3 {[%clk 0:00:44.6]}
19... Ba4 {[%clk 0:01:27.6]} 20. Rdd3 {[%clk 0:00:27.1]} 20... Bb5 {[%clk
0:01:18.7]} 21. Rxd8+ {[%clk 0:00:20]} 21... Rxd8 {[%clk 0:01:15.2]} 22. gxf4
{[%clk 0:00:20.9]} 22... O-O {[%clk 0:00:57]} 23. Bxb7 {[%clk 0:00:13.6]} 23...
Rd1+ {[%clk 0:00:50]} 24. Kg2 {[%clk 0:00:13.4]} 24... Bf1+ {[%clk 0:00:50.9]}
25. Kg3 {[%clk 0:00:13.2]} 25... Rb1 {[%clk 0:00:51.8]} 26. Rb3 {[%clk
0:00:08.5]} 26... Rb8 {[%clk 0:00:51.4]} 27. Nd2 {[%clk 0:00:07.8]} 27... Rxb2
{[%clk 0:00:47.5]} 28. Rxb2 {[%clk 0:00:07.5]} 28... Ba6 {[%clk 0:00:48.2]} 29.
Nc4 {[%clk 0:00:06.5]} 29... Bxc4 {[%clk 0:00:45.9]} 30. Rb4 {[%clk 0:00:05.6]}
30... Ba2 {[%clk 0:00:35.4]} 31. Bc6 {[%clk 0:00:04.3]} 31... Rc8 {[%clk
0:00:30.2]} 32. Be4 {[%clk 0:00:02.8]} 32... Rc3+ {[%clk 0:00:29]} 33. f3 {[%clk
0:00:03.1]} 33... f5 {[%clk 0:00:26.6]} 34. Bb7 {[%clk 0:00:02.2]} 34... Rxa3
{[%clk 0:00:26]} 35. Bc6 {[%clk 0:00:02.3]} 35... Kf7 {[%clk 0:00:24.6]} 36.
Rb7+ {[%clk 0:00:02.5]} 36... Kf6 {[%clk 0:00:25.2]} 37. Be8 {[%clk 0:00:02.2]}
37... Rxf3+ {[%clk 0:00:22.6]} 38. Kg2 {[%clk 0:00:01.4]} 38... Rxf4 {[%clk
0:00:12.4]} 39. Rf7+ {[%clk 0:00:01.5]} 39... Ke5 {[%clk 0:00:12.3]} 40. Rxg7
{[%clk 0:00:02.2]} 40... Bd5+ {[%clk 0:00:11.4]} 41. Kg3 {[%clk 0:00:02.7]}
41... Rf3+ {[%clk 0:00:11.8]} 42. Kh4 {[%clk 0:00:03.3]} 42... Rf2 {[%clk
0:00:12.1]} 43. Ra7 {[%clk 0:00:03]} 43... Rxh2+ {[%clk 0:00:11.7]} 44. Kg3
{[%clk 0:00:03.3]} 44... Rg2+ {[%clk 0:00:12.6]} 45. Kh3 {[%clk 0:00:03.4]}
45... h6 {[%clk 0:00:12.2]} 46. Ra5 {[%clk 0:00:02.6]} 46... Rg5 {[%clk
0:00:12.2]} 47. Kh4 {[%clk 0:00:02.5]} 47... Rg8 {[%clk 0:00:12.3]} 48. Bd7
{[%clk 0:00:02.2]} 48... Rg7 {[%clk 0:00:12.6]} 49. Bc8 {[%clk 0:00:02.1]} 49...
Kf4 {[%clk 0:00:12.8]} 50. Kh5 {[%clk 0:00:01.8]} 50... Rc7 {[%clk 0:00:08.3]}
51. Ba6 {[%clk 0:00:01.5]} 51... Rd7 {[%clk 0:00:08.1]} 52. Ra4+ {[%clk
0:00:01.9]} 52... Be4 {[%clk 0:00:07.2]} 53. Kxh6 {[%clk 0:00:02.8]} 53... e5
{[%clk 0:00:07.2]} 54. Kg6 {[%clk 0:00:03]} 54... Rd6+ {[%clk 0:00:07.4]} 55.
Kf7 {[%clk 0:00:03]} 55... Ke3 {[%clk 0:00:06.5]} 56. Bb5 {[%clk 0:00:03.1]}
56... f4 {[%clk 0:00:05.4]} 57. Ra3+ {[%clk 0:00:03.6]} 57... Bd3 {[%clk
0:00:04.6]} 58. Ke7 {[%clk 0:00:03.1]} 58... Rd4 {[%clk 0:00:04.8]} 59. Bc6
{[%clk 0:00:02.6]} 59... e4 {[%clk 0:00:04.8]} 60. Ke6 {[%clk 0:00:02.9]} 60...
f3 {[%clk 0:00:05.1]} 61. Ke5 {[%clk 0:00:03.3]} 61... f2 {[%clk 0:00:04.8]} 62.
Ra1 {[%clk 0:00:03.8]} 62... f1=Q {[%clk 0:00:04.4]} 63. Rxf1 {[%clk 0:00:04.2]}
63... Bxf1 {[%clk 0:00:05.3]} 64. Bxe4 {[%clk 0:00:05.1]} 64... Rxe4+ {[%clk
0:00:06.2]} 65. Kf5 {[%clk 0:00:05.1]} 0-1